Cogmind - Beta 14 @@@ ROGUE MODE // 2024.11.08 @ 20:39:26 Player: OctagonalPrism Result: Destroyed by 8R-AWN with 8R-AWN's Boregun Performance ------------- Evolutions (1) 500 Regions Visited (5) 1000 Robots Destroyed (50) 250 Value Destroyed (1162) 1162 Prototype IDs (8) 160 Alien Tech Used (0) 0 Bonus (310) 310 TOTAL SCORE: 3382 Bonus ------- High Alert Combat Kills 83 Follower Combat Kills 239 Friendly Fire -12 Cogmind --------- Core Integrity 0/400 Matter 209/300 Energy 100/100 System Corruption 1% Temperature Cool (0) Movement Core (400) Ox7 Location -9/Exiles Parts ------- > --- POWER (1) -------- (None) > --- PROPULSION (2) --- (None) > --- UTILITY (4) ------ Large Storage Unit Terrain Scan Processor Salvage Targeting Computer > --- WEAPON (2) ------- Hammer > --- INVENTORY (15) --- Reinforced Ion Engine Improved Heat Sink Large Storage Unit Signal Interpreter Improved Terrain Scanner Salvage Targeting Computer Hacking Suite Hacking Suite System Shield System Shield Grenade Launcher Peak State ------------ > --- POWER ------------ Improved Ion Engine > --- PROPULSION ------- Light Treads Compact Wheel > --- UTILITY ---------- Large Storage Unit Improved Terrain Scanner Terrain Scan Processor Salvage Targeting Computer > --- WEAPON ----------- Light Assault Rifle Assault Cannon > --- INVENTORY -------- Reinforced Ion Engine Light Treads Compact Wheel Improved Heat Sink Large Storage Unit Signal Interpreter Salvage Targeting Computer Light Armor Plating Hacking Suite Hacking Suite System Shield System Shield Grenade Launcher Hammer [Rating: 18] Favorites ----------- Power Ion Engine Engine Ion Engine Propulsion Light Treads Treads Light Treads Wheel Wheel Utility Improved Terrain Scanner Device Improved Terrain Scanner Storage Large Storage Unit Processor Salvage Targeting Computer Protection Light Armor Plating Weapon Light Assault Rifle Ballistic Gun Light Assault Rifle Ballistic Cannon Assault Cannon Launcher Grenade Launcher Impact Weapon Hammer Build | -11 -10 -10 -9 -9 -9 ------- Run | Yrd Mat Min Mat Min Exi Slots Evolved 2 | . . . 2 . . Power . | . . . . . . Propulsion . | . . . . . . Utility 2 | . . . 2 . . Weapon . | . . . . . . Parts Attached 47 | 7 6 1 26 1 6 Power 5 | 1 . . 4 . . Engine 5 | 1 . . 4 . . Core . | . . . . . . Reactor . | . . . . . . Propulsion 14 | 2 4 . 6 . 2 Treads 7 | 1 2 . 3 . 1 Leg . | . . . . . . Wheel 7 | 1 2 . 3 . 1 Hover . | . . . . . . Flight . | . . . . . . Utility 13 | 2 1 . 8 1 1 Device 5 | 1 . . 3 1 . Storage 2 | 1 1 . . . . Processor 2 | . . . 2 . . Hackware . | . . . . . . Protection 4 | . . . 3 . 1 Artifact . | . . . . . . Weapon 15 | 2 1 1 8 . 3 Energy Gun . | . . . . . . Energy Cannon . | . . . . . . Ballistic Gun 12 | 2 1 1 7 . 1 Ballistic Cannon 1 | . . . 1 . . Launcher 1 | . . . . . 1 Special Weapon . | . . . . . . Impact Weapon 1 | . . . . . 1 Slashing Weapon . | . . . . . . Piercing Weapon . | . . . . . . Special Melee Weapon . | . . . . . . Unidentified Prototypes . | . . . . . . Parts Lost 12 | . 1 . 3 . 8 Power 1 | . . . . . 1 Propulsion 7 | . 1 . 2 . 4 Utility 1 | . . . . . 1 Weapon 3 | . . . 1 . 2 Highest Loss Streak 8 | . 1 . 1 . 8 To Critical Strikes 4 | . . . . . 4 Average Slot Usage (%) 97 | . 99 100 96 100 93 Engine 12 | . 14 14 11 11 9 Treads 13 | . 14 14 14 11 10 Wheel 10 | . 13 14 7 11 9 Device 11 | . 14 14 9 10 5 Storage 12 | . 14 14 11 11 11 Processor 11 | . . . 17 22 22 Protection 1 | . . . 2 . 3 Ballistic Gun 22 | . 27 28 21 11 10 Ballistic Cannon 1 | . . . . 11 8 Peak Build Rating 18 | 9 10 10 17 18 18 Average Rating 12 | 4 9 10 14 17 15 On Entrance 10 | . 9 10 10 16 18 Naked Turns . | . . . . . . Heaviest Build 38 | 14 29 29 38 36 38 Greatest Support 40 | 20 20 20 40 16 20 Greatest Overweight (x) 3 | 1 2 1 3 2 2 Average Overweight (x) 1 | . . 1 1 2 1 Largest Inventory Capacity 15 | 8 15 15 15 15 15 Average Capacity 12 | 6 8 15 15 15 15 Most Carried 15 | 4 7 8 15 14 14 Average Carried 8 | 2 5 7 9 14 13 Final Capacity 15 | 8 15 15 15 15 15 Final Carried 14 | 3 7 7 14 14 11 Class Distribution -------------------- 47% | Mutant 40% | Scavenger-Mutant 12% | Commander-Mutant Dominant Class ---------------- Mutant | -10/Materials Mutant | -10/Mines Scavenger-Mutant | -9/Materials Scavenger-Mutant | -9/Mines Scavenger-Mutant | -9/Exiles Resources | -11 -10 -10 -9 -9 -9 ----------- Run | Yrd Mat Min Mat Min Exi Matter Collected 1355 | 103 456 72 679 45 . Remotely . | . . . . . . Salvage Created 1647 | 18 562 40 1018 . 9 Parts 113 | 2 35 4 72 . . Haulers Intercepted 2 | . 1 . 1 . . Recyclers Shooed 4 | . 3 . 1 . . Parts Field Recycled . | . . . . . . Retrieved Matter . | . . . . . . Parts Self-Destructed . | . . . . . . Prevented . | . . . . . . Kills | -11 -10 -10 -9 -9 -9 ------- Run | Yrd Mat Min Mat Min Exi Combat Hostiles Destroyed 43 | . 11 3 22 . 7 Guns 33 | . 11 3 19 . . Cannons 4 | . . . 2 . 2 AOE 6 | . . . 1 . 5 Classes Destroyed 12 | 1 5 . 5 . 1 Builder 1 | . . . 1 . . Tunneler 2 | 1 . . 1 . . Hauler 2 | . 1 . 1 . . Recycler 1 | . 1 . . . . Mechanic 1 | . . . 1 . . Operator 1 | . . . 1 . . Watcher 6 | . 3 . 3 . . Swarmer 14 | . 3 3 8 . . Grunt 14 | . 8 . 6 . . Brawler 3 | . . . 3 . . Sentry 5 | . . . 5 . . Assembled 7 | . . . . . 7 Best Kill Streak 7 | 1 3 3 6 . 7 Combat Bots Only 7 | . 3 3 4 . 7 Max Kills in Single Turn 3 | 1 1 1 3 . 3 Gunslinging . | . . . . . . Exploded 3 | . . . 1 . 3 Melee . | . . . . . . Uniques/NPCs Destroyed . | . . . . . . Combat | -11 -10 -10 -9 -9 -9 -------- Run | Yrd Mat Min Mat Min Exi Hostile Shots Fired 239 | . 58 25 91 . 65 Missed 63 | . 16 9 25 . 13 Damage Taken 2428 | . 435 129 974 . 890 Core 516 | . 63 34 207 . 212 Absorbed by Shields . | . . . . . . Regen/Repaired (Parts) 273 | . 166 . 107 . . Core Remaining (%) 80 | 100 . 61 . . . Volleys Fired 165 | 4 61 9 82 . 9 Largest 2 | 2 2 2 2 . 2 Hottest 67 | 40 40 40 67 . 64 Shots Fired 321 | 8 122 18 159 . 14 Gun 307 | 8 122 18 153 . 6 Cannon 10 | . . . 6 . 4 Launcher 4 | . . . . . 4 Special . | . . . . . . Kinetic 317 | 8 122 18 159 . 10 Thermal . | . . . . . . Explosive 4 | . . . . . 4 Electromagnetic . | . . . . . . Robot Hit Streak 17 | 2 8 4 17 . 6 Robot Miss Streak 6 | 2 3 3 6 . 2 Penetration Max . | . . . . . . Secondary Targets 5 | . 2 2 1 . . Max Gunslinging Chain 1 | . 1 1 1 . . Shots Hit Robots 201 | 4 76 9 100 . 12 Core Hits 96 | 2 33 4 42 . 15 Critical Kills 2 | . 1 . 1 . . Critical Parts Destroyed 1 | . . . . . 1 Critical Strikes 3 | . 1 . 1 . 1 Destroy 2 | . 1 . 1 . . Smash 1 | . . . . . 1 Melee Attacks 4 | . . . . . 4 Impact 4 | . . . . . 4 Slashing . | . . . . . . Piercing . | . . . . . . Sneak Attacks . | . . . . . . Combat Hostiles . | . . . . . . Follow-up Attacks . | . . . . . . Damage Inflicted 3231 | 40 848 108 1631 . 604 Guns 2358 | 40 848 108 1338 . 24 Cannons 189 | . . . 92 . 97 Explosions 570 | . . . 201 . 369 Melee 114 | . . . . . 114 Ramming . | . . . . . . Kinetic 2547 | 40 848 108 1430 . 121 Thermal 201 | . . . 201 . . Explosive 369 | . . . . . 369 Electromagnetic . | . . . . . . Impact 114 | . . . . . 114 Slashing . | . . . . . . Piercing . | . . . . . . Highest Corruption 1 | . . . 1 1 1 Average Corruption 1 | . . . 1 1 1 Corruption Purged . | . . . . . . Corruption Blocked . | . . . . . . Effects 3 | . . . 1 1 1 Message Errors 1 | . . . 1 . . Matter Fused 1 | . . . . 1 . Misfires 1 | . . . . . 1 Overload Shots . | . . . . . . Overflow Damage 136 | . . . 98 . 38 Projectiles . | . . . . . . Explosions 99 | . . . 98 . 1 Melee 37 | . . . . . 37 Knockbacks 2 | . . . . . 2 Impact 2 | . . . . . 2 Kinetic . | . . . . . . Secondary . | . . . . . . Self-Inflicted Damage 119 | . . . 76 . 43 Shots 3 | . . . 1 . 2 Rammed . | . . . . . . Targets Rammed . | . . . . . . Kicked . | . . . . . . Crushed . | . . . . . . Highest Temperature 66 | . 15 . 45 . 66 Average Temperature 13 | . 7 . 11 . 29 Received Heat Transfer 651 | . 183 . 408 . 60 Siege Activations . | . . . . . . Robots Corrupted . | . . . . . . Combat Hostiles . | . . . . . . Parts Fried . | . . . . . . Impact Corruptions 1 | . . . . . 1 Robots Melted . | . . . . . . Combat Hostiles . | . . . . . . Parts Melted 1 | . . . 1 . . Heat Transferred 150 | . . . 150 . . Parts Sabotaged . | . . . . . . Parts Stolen . | . . . . . . Parts Stripped . | . . . . . . Power Chain Reactions . | . . . . . . Alert | -11 -10 -10 -9 -9 -9 ------- Run | Yrd Mat Min Mat Min Exi Peak Influence 656 | 5 294 126 656 255 . Initial 255 | . 3 56 48 255 . Average 212 | . 128 119 283 255 . Maximum Alert Level 2 | . 1 . 2 1 . Low Security (%) 51 | 100 91 100 24 . . Level 1 37 | . 8 . 53 100 . Level 2 11 | . . . 22 . . Level 3 . | . . . . . . Level 4 . | . . . . . . Level 5 . | . . . . . . High Security . | . . . . . . Max Security . | . . . . . . Squads Dispatched 8 | . 3 . 5 . . Investigation 5 | . 3 . 2 . . Extermination . | . . . . . . Reinforcement 1 | . . . 1 . . Assault 2 | . . . 2 . . Garrison . | . . . . . . Intercept . | . . . . . . Searches Triggered . | . . . . . . Construction Impeded . | . . . . . . Haulers Reinforced . | . . . . . . Active Scanning Responses . | . . . . . . Cargo Convoy Interrupts . | . . . . . . Stealth | -11 -10 -10 -9 -9 -9 --------- Run | Yrd Mat Min Mat Min Exi Distress Signals 4 | . . . 4 . . Communications Jammed . | . . . . . . Distress Signals . | . . . . . . Times Spotted 74 | . 21 3 41 . 9 Peak Tracking Total 10 | . 3 3 5 . 10 Tactical Retreats 5 | . . . 4 . 1 Traps | -11 -10 -10 -9 -9 -9 ------- Run | Yrd Mat Min Mat Min Exi Traps Triggered 1 | . . . 1 . . Indirectly . | . . . . . . Trap Hack Attempts . | . . . . . . Triggered . | . . . . . . Disarmed . | . . . . . . Reprogrammed . | . . . . . . Reused . | . . . . . . Traps Extracted . | . . . . . . Installed . | . . . . . . Triggered . | . . . . . . Machines | -11 -10 -10 -9 -9 -9 ---------- Run | Yrd Mat Min Mat Min Exi Machines Disabled 6 | . . . 2 . 4 Max in Single Turn 2 | . . . 2 . 2 Machines Repaired . | . . . . . . Machines Dismantled . | . . . . . . Machines Sabotaged . | . . . . . . Overloaded Fab Kills . | . . . . . . Hacking | -11 -10 -10 -9 -9 -9 --------- Run | Yrd Mat Min Mat Min Exi Machines Accessed 20 | . 11 . 9 . . Terminals 15 | . 8 . 7 . . Fabricators . | . . . . . . Repair Stations 2 | . 1 . 1 . . Recycling Units 2 | . 2 . . . . Scanalyzers 1 | . . . 1 . . Garrison Access . | . . . . . . Total Hacks 84 | . 44 . 40 . . Successful 61 | . 30 . 31 . . Failed 22 | . 13 . 9 . . Catastrophic 1 | . . . 1 . . Database Lockouts 1 | . 1 . . . . Manual 31 | . 17 . 14 . . Terminals 58 | . 33 . 25 . . Fabricators . | . . . . . . Repair Stations 13 | . 7 . 6 . . Recycling Units 4 | . 4 . . . . Scanalyzers 9 | . . . 9 . . Garrison Access . | . . . . . . Terminal Hacks 25 | . 14 . 11 . . Robot Analysis 2 | . 1 . 1 . . Prototype ID Bank 6 | . 5 . 1 . . Branch Access Points 1 | . . . 1 . . Emergency Access Points 2 | . 2 . . . . Terminal Index 2 | . 1 . 1 . . Alert Level 1 | . . . 1 . . Locate Traps 2 | . 1 . 1 . . Zone Layout 9 | . 4 . 5 . . Fabricator Hacks . | . . . . . . Repair Station Hacks 12 | . 6 . 6 . . Scan Component 6 | . 3 . 3 . . Repair 6 | . 3 . 3 . . Recycling Unit Hacks 2 | . 2 . . . . Report Inventory 2 | . 2 . . . . Scanalyzer 9 | . . . 9 . . Insert Component 4 | . . . 4 . . Analyze 5 | . . . 5 . . Garrison Access Hacks . | . . . . . . Unauthorized Hacks 13 | . 8 . 5 . . Terminals 11 | . 6 . 5 . . Assimilate 2 | . 2 . . . . Botnet 7 | . 3 . 4 . . Operators 2 | . 1 . 1 . . Fabricators . | . . . . . . Repair Stations . | . . . . . . Recycling Units 2 | . 2 . . . . Tunnel 2 | . 2 . . . . Scanalyzers . | . . . . . . Garrison Access . | . . . . . . Data Cores Recovered . | . . . . . . Used . | . . . . . . Hacking Detections 16 | . 8 . 8 . . Full Trace Events 3 | . 1 . 2 . . Feedback Events . | . . . . . . Feedback Blocked . | . . . . . . Robot Schematics Acquired . | . . . . . . Robots Built . | . . . . . . Authchips . | . . . . . . Time . | . . . . . . Total Robot Build Rating . | . . . . . . Part Schematics Acquired 4 | . . . 4 . . Parts Built . | . . . . . . Authchips . | . . . . . . Time . | . . . . . . Total Part Build Rating . | . . . . . . Parts Repaired 6 | . 3 . 3 . . Time 162 | . 78 . 84 . . Parts Recycled . | . . . . . . Recycled Matter . | . . . . . . Retrieved Matter . | . . . . . . Retrieved Components . | . . . . . . Parts Scanalyzed 4 | . . . 4 . . Part Schematics Acquired 4 | . . . 4 . . Parts Damaged . | . . . . . . Bothacking | -11 -10 -10 -9 -9 -9 ------------ Run | Yrd Mat Min Mat Min Exi Used RIF Installer . | . . . . . . Robots Hacked . | . . . . . . Non-combat . | . . . . . . Combat . | . . . . . . Robot Hacks Applied . | . . . . . . Relay Couplers Released . | . . . . . . Fabnet Peak Effective % . | . . . . . . Robots Rewired . | . . . . . . Allies Hacked . | . . . . . . Hacks Repelled . | . . . . . . Allies | -11 -10 -10 -9 -9 -9 -------- Run | Yrd Mat Min Mat Min Exi Total Allies 6 | . 2 3 . 1 . Largest Group 4 | . 1 4 4 1 1 Highest-Rated Group 49 | . 10 49 49 31 31 Highest-Rated Ally 31 | . 10 16 16 31 31 Total Orders . | . . . . . . Ally Attacks 43 | . . . 42 . 1 Total Damage 457 | . . . 457 . . Kills 12 | . . . 12 . . Allies Corrupted . | . . . . . . Allies Melted . | . . . . . . Intel | -11 -10 -10 -9 -9 -9 ------- Run | Yrd Mat Min Mat Min Exi Robot Analysis Total 2 | . 1 . 1 . . Derelict Logs Recovered 3 | . . 1 . 2 . Drone Launches . | . . . . . . Drone Recoveries . | . . . . . . Exploration | -11 -10 -10 -9 -9 -9 ------------- Run | Yrd Mat Min Mat Min Exi Turns Passed 2956 | 57 961 179 1419 212 128 Spaces Moved 1441 | 38 531 64 584 162 62 Core 5 | 5 . . . . . Treads 683 | 1 232 64 379 . 7 Legs . | . . . . . . Wheels 753 | 32 299 . 205 162 55 Hover . | . . . . . . Flight . | . . . . . . Fastest Speed 50 | 50 95 240 115 130 115 Average Speed 147 | 85 124 240 168 130 141 Slowest Speed 240 | 160 160 240 240 130 240 Overloaded Moves . | . . . . . . Propulsion Burnouts . | . . . . . . Robots Hopped . | . . . . . . Cave-ins Triggered . | . . . . . . Exploration Rate (%) 38 | 3 78 17 69 43 22 Regions Visited 5 Branch Regions 3 Pre-discovered Areas 5 | . 2 1 . 2 . Known Exits Taken 1 | . . . 1 . . Unknown Exits Taken 4 | 1 1 1 . 1 . Scrap Searched 3 | . . 1 . 2 . Spaces Dug . | . . . . . . Terrain Destroyed 51 | . . . 43 . 8 Melee . | . . . . . . Projectile 2 | . . . 2 . . AOE 49 | . . . 41 . 8 Terrain Rammed . | . . . . . . Walls Destroyed . | . . . . . . Machines Disabled . | . . . . . . Actions | -11 -10 -10 -9 -9 -9 --------- Run | Yrd Mat Min Mat Min Exi Total 1960 | 52 719 74 871 163 81 Wait 267 | . 112 . 154 1 . Move 1436 | 37 530 63 583 161 62 Hop . | . . . . . . Pick Up 23 | 4 7 . 12 . . Fast Attach 14 | 6 2 . 6 . . Attach 9 | 1 1 . 4 . 3 Detach 3 | . . . 3 . . Swap 24 | . 3 1 16 1 3 Drop 15 | . 3 1 11 . . Fire 165 | 4 61 9 82 . 9 Melee 4 | . . . . . 4 Ram . | . . . . . . Kick . | . . . . . . Crush . | . . . . . . Escape Stasis . | . . . . . . Rewire . | . . . . . . Trap . | . . . . . . Miscellaneous . | . . . . . . Route ------- -11/Scrapyard -10/Materials (discovered 5 exits: *Mat x3 / [*Min x2]) -10/Mines -9/Materials (discovered 6 exits: [*Mat x3] / *Min / *Sto x2) -9/Mines (discovered 2 exits: [*Mat] / [*Exi]) -9/Exiles History --------- Turn | Location | Event 25 | -11/Scrapyard | Discovered new exit (range 15) 58 | -11/Scrapyard | Entered Materials 122 | -10/Materials | Discovered new exit (range 10) 305 | -10/Materials | Build established: Mutant 418 | -10/Materials | Central database locked down 536 | -10/Materials | Repaired Assault Rifle 563 | -10/Materials | Repaired Wheel 591 | -10/Materials | Repaired Lgt. Treads 663 | -10/Materials | Discovered new exit (range 13) 766 | -10/Materials | Discovered new exit (range 16) 775 | -10/Materials | Discovered new exit (range 5) 920 | -10/Materials | Discovered new exit (range 13) 1019 | -10/Materials | Entered Mines 1019 | -10/Mines | Accompanied by 1 ally 1095 | -10/Mines | Learned location of Storage (-9) 1135 | -10/Mines | Discovered new exit (range 5) 1159 | -10/Mines | Assisted by bots powering up and referring to "LRC-V3" 1198 | -10/Mines | Entered Materials 1198 | -9/Materials | Accompanied by 4 allies 1198 | -9/Materials | Evolved 2 slots: Utility x2 1340 | -9/Materials | Identified exit to Mines 1340 | -9/Materials | Identified exit to Storage 1457 | -9/Materials | Build established: Commander-Mutant 1531 | -9/Materials | Discovered new exit (range 13) 1871 | -9/Materials | Repaired Ion Engine 1897 | -9/Materials | Repaired Lgt. Armor Plating 1929 | -9/Materials | Repaired Hvy. Assault Rifle 2056 | -9/Materials | Discovered new exit (range 16) 2294 | -9/Materials | Discovered new exit (range 13) 2398 | -9/Materials | First assault squad dispatched 2461 | -9/Materials | Core integrity fell below 50% 2613 | -9/Materials | Build established: Scavenger-Mutant 2617 | -9/Materials | Entered Mines 2644 | -9/Mines | Met a Derelict bent on vengeance 2681 | -9/Mines | Discovered new exit (range 15) 2791 | -9/Mines | Learned location of Zion (-7) 2797 | -9/Mines | Received a Mining Laser from a helpful Derelict 2822 | -9/Mines | Deemed a non-threat by the Exiles lab entrance 2822 | -9/Mines | Discovered new exit (range 5) 2829 | -9/Mines | Entered Exiles 2829 | -9/Exiles | Accompanied by 1 ally 2861 | -9/Exiles | Met 8R-AWN 2883 | -9/Exiles | Met EX-HEX 2895 | -9/Exiles | Attacked by the Exiles 2940 | -9/Exiles | Destroyed 7 combat bots 2941 | -9/Exiles | Core integrity fell below 20% 2957 | -9/Exiles | Destroyed by 8R-AWN with 8R-AWN's Boregun Last Messages --------------- 02940_ Critical hit (Destroy). 02940_ Lgt. Treads destroyed. 02940_ HV Slug penetrates Assembled Analyzer. 02940_ Penetrated by HV Slug. 02940_ HV Slug penetrates Assembled Analyzer. 02940_ Machine disabled. 02941_ 8R-AWN knocked back. 02942_ Penetrated by HV Slug. 02945_ The unstable cave ceiling collapses. 02948_ Penetrated by HV Slug. 02950_ Critical hit (Destroy). 02950_ Lgt. Assault Rifle destroyed. 02950_ 8R-AWN suffers critical hit (Smash). 02950_ Destroyed Rnf. Fission Core. 02950_ 8R-AWN system corrupted by crushing effect. 02952_ HV Slug penetrates Wall. 02952_ Penetrated by HV Slug. 02957_ Critical hit (Destroy). 02957_ Com. Wheel destroyed. 02957_ Penetrated by HV Slug. Map ----- +----------------------------------------------------+ | ?????????????????????????????????????????????????? | | ?????????????????????????????????????????????????? | | ?????????????????????????????????????????????????? | | ?????????????????????????????????????????????????? | | ?????????????????????????????????????????????????? | | ?????????????????????????????????????????????????? | | ?????????????????????????????????????????????????? | | ?????????????????????????????????????????????????? | | ????????????????????????????#?#??????????????????? | | ?????????????????????????#?#?????????????????????? | | ??????????###??????????????#??????????#??????????? | | ?????##"?"" """"##?????????#??????????#?#?#?#????? | | ??? " """ """"#?#?#???#??????#???????#????#???# | | ??? "" " #???????????????#????#??????#?#? | | ?? " """#??????????????????????#???????# | | ?? a"#?#????#????######????#???#?##?? | | ? " "####?????#?##" #????#?##????#?# | | ? "####????#?#" #????#?#?#????## | | ? ""#?###??##" ##???????#????# | | ? #????### ####?#?????### | | ??"" ##??## ########## | | ???"" !! ##### #""""## | | ??"""" !!!!! ;## * | | #?"" !!%!!! ## * | | ??""" !!!! % #### | | " ! * @ ""###"""""#### | | #g""##?#######??#### | | #######??#???????######## | | ##?#??#??????##?????????### | | ? " % ##??##???###????????###???# | | ?" """ % ##??#??##?#??#???#??#?#????? | | ?"" " " ""# #?##??#????#?????#??##?#???? | | ??##""" """##""" #??##??????#?##?#??##?#?#??? | | ???#?#"""???###### ###?#?###???????##???#???????? | | ?????##????????######??#???#?????????##????????#?? | | ??????????????????????#?##?#??#?#??????????###???? | | ?????????????????????????#???????##???????##?????# | | ????????????#???????????????#?????#??????????#???# | | ???????????????#????????#????#??????#??????????#?? | | ???????????????????????????????????????????#?#?##? | | ?????????????????????#????????????????????#????#?? | | ?????????????????????????????????????????????#???? | | ?????????????????????????????????????????????????? | | ?????????????????????????????????????????????????? | | ?????????????????????????????????????????????????? | | ?????????????????????????????????????????????????? | | ?????????????????????????????????????????????????? | | ?????????????????????????????????????????????????? | | ?????????????????????????????????????????????????? | | ?????????????????????????????????????????????????? | +----------------------------------------------------+ Best States ------------- Heat Dissipation 42 Energy Generation 12 Energy Capacity 265 Matter Stores 300 Matter Capacity 300 Sight Range 16 Terrain Scan Range 16 Terrain Scan Density 85 Armor Coverage 150 Evasion (%) 44 Recoil Reduction 2 Salvage Targeting 1 Item Schematics ----------------- Hacking Suite | -9/Materials | Scanalyzed Salvage Targeting Computer | -9/Materials | Scanalyzed Imp. Terrain Scanner | -9/Materials | Scanalyzed Lrg. Storage Unit | -9/Materials | Scanalyzed Robot Schematics ------------------ None Fabricated ------------ Nothing Alien Tech Used ----------------- None Achievements -------------- None Challenges ------------ None Game ------ Seed MakeshiftMiniDoublenader Manual? 0 Play Time 00:29:51 Cumulative 180.8 hours Start 2024.11.08 @ 20:11:44 End 2024.11.08 @ 20:39:26 Sessions 1 Manual Loads 0 Difficulty Rogue Special Mode None Game No. 145 Rogue 145 Adventurer 0 Explorer 0 Win Type - Total 4 Types 2/0/1/1/0/0/0/0/0 Lore% 62 Gallery% 66 Achievement% 52 Wizard Run 0 Options --------- Layout 2 ASCII 0 Keyboard 0 Movement Numpad Keybinds 0 Fullscreen 1 Font 16/Terminus Map View 55x47 Zoom Use 0% Tactical HUD 1 Map Filters NONE Filters NONE Steam 1 RUN: 4bd26d4c-d2b8-4ba3-98bf-441883d40a91